[Event "26th Womens ECCC 2022"]
[Site "Mayrhofen"]
[Date "2022.10.08"]
[Round "6.23"]
[White "Gajcin, Marina"]
[Black "Thorsteinsdottir, Hallgerdur"]
[Result "1-0"]
[ECO "B11"]
[WhiteElo "2228"]
[BlackElo "1959"]
[Annotator "TA"]
[PlyCount "85"]
[EventDate "2022.10.03"]
[EventType "team-tourn"]
[EventCountry "AUT"]
[SourceTitle "playchess.com"]
[Source "ChessBase"]
[SourceQuality "1"]
[TimeControl "40/5400+30:1800+30"]

{[%evp 10,85,11,9,22,2,29,11,8,8,20,7,51,0,21,11,19,21,49,22,29,14,38,27,38,41,47,13,70,60,103,58,69,37,70,60,62,13,16,18,15,8,167,168,259,253,348,144,153,139,162,61,125,28,24,-32,50,39,118,71,117,23,516,291,268,246,235,170,149,-4,-54,-62,368,337,287,256,29990,29991]} 1. e4 {[%emt 0:00:03]} c6 {[%emt 0:00:06]} 2. Nc3 {[%emt 0:00:06]} d5 {[%emt 0:00:10]} 3. Nf3 {[%emt 0:00:07]} Bg4 {[%emt 0:00:23]} 4. h3 {[%emt 0:00:06]} Bxf3 {[%emt 0:00:30]} 5. Qxf3 {[%emt 0:00:08]} e6 {[%emt 0:00:31]} 6. Be2 {[%emt 0:01:59]} Nf6 {[%emt 0:01:17] B11: Caro-Kann: Two Knights Variation.} 7. O-O {[%emt 0:00:33]} Be7 {[%emt 0:00:35]} (7... d4 $5 {[%cal Rd4c3]}) 8. Rd1 {[%emt 0:02:36]} d4 {[%emt 0:01:47] The position is equal.} 9. Nb1 {[%emt 0:03:46]} Nbd7 {[%emt 0:06:00]} 10. d3 {[%emt 0:01:56]} Qc7 {[%emt 0:08:35] [#]} 11. g3 $146 {[%emt 0:09:46]} (11. c3 $14) ({Predecessor:} 11. Bf4 Bd6 12. Bxd6 Qxd6 13. Nd2 O-O 14. g3 b5 15. Qg2 e5 16. Rf1 Nb6 17. f4 {0-1 (29) Chwistek,K (2062)-Sanz Wawer,D (2266) Prague 2020}) 11... O-O {[%emt 0:02:13]} 12. Qg2 {[%emt 0:06:02]} c5 {[%emt 0:05:04]} 13. f4 {[%emt 0:06:06]} b5 {[%emt 0:03:34]} 14. Nd2 {[%emt 0:06:01]} a6 {[%emt 0:12:06]} 15. Kh1 {[%emt 0:03:46]} Rfd8 {[%emt 0:04:36]} 16. Nf3 {[%emt 0:04:36]} Nb6 {[%emt 0:03:10]} 17. g4 {[%emt 0:04:06][%cal Bg3g4,Bg4g5][%mdl 32]} Rac8 {[%emt 0:02:17]} 18. g5 {[%emt 0:07:34]} Ne8 {[%emt 0:16:39]} (18... Nh5 $1 $11) 19. Rf1 $14 {[%emt 0:05:16]} c4 {[%emt 0:11:17]} 20. Ne5 {[%emt 0:03:06]} Nd7 {[%emt 0:02:04]} 21. Ng4 {[%emt 0:02:42]} Bd6 {[%emt 0:03:19]} 22. e5 {[%emt 0:11:28]} Bb4 {[%emt 0:00:10]} 23. Nf6+ {[%emt 0:04:15]} Nexf6 $11 {[%emt 0:01:40]} (23... gxf6 $2 24. gxf6+ Kf8 25. f5 (25. Rg1 Nexf6 26. exf6 Nxf6 $14) 25... Nexf6 26. fxe6 $18 (26. exf6 e5 $18)) 24. gxf6 {[%emt 0:00:22][%csl Gf6][%cal Rg2g7]} g6 {[%emt 0:00:14]} 25. h4 {[%emt 0:02:42][%cal Bh3h4,Bh4h5][%mdl 32] next h5 is good for White.} Nb6 $2 {[%emt 0:02:17]} (25... cxd3 $11 26. Bxd3 Nc5) 26. h5 $18 {[%emt 0:00:35]} Kf8 {[%emt 0:00:28]} (26... Kh8 {was necessary.}) 27. a3 {[%emt 0:00:43]} Ba5 {[%emt 0:01:10]} 28. Qg5 {[%emt 0:00:35]} (28. hxg6 $18 {and White stays clearly on top.} hxg6 29. dxc4) 28... Ke8 $16 {[%emt 0:02:58]} 29. Qh6 {[%emt 0:05:32]} Kd7 {[%emt 0:00:13]} 30. Bf3 {[%emt 0:01:19] Active counter play!} (30. Qxh7 $18 Kc6 31. h6 (31. hxg6 $2 Rh8 $19)) 30... Nd5 {[%emt 0:00:51]} (30... Rh8 $1 $14) 31. Bxd5 {[%emt 0:00:54]} (31. Qxh7 $16 Kc6 32. Qh6 (32. hxg6 $2 Rh8 $19)) 31... exd5 $11 {[%emt 0:00:05]} 32. Qg5 {[%emt 0:01:55]} (32. Qxh7 Kc6 33. e6 (33. hxg6 $2 Rh8 $19) 33... Rh8 34. Qxf7 Qxf7 35. exf7 Rxh5+ 36. Kg2 Rf8 $17) (32. e6+ $11 Kxe6 33. f5+ Kd7 34. Bf4 (34. hxg6 $2 hxg6 35. Qf4 Rh8+ 36. Kg1 Rcg8 $19)) 32... cxd3 {[%emt 0:03:02]} (32... Kc6 $15) 33. cxd3 {[%emt 0:00:41]} Qc2 {[%emt 0:00:20]} (33... Qc6 $14) 34. Qg3 {[%emt 0:01:07]} ({White should try} 34. Qg4+ Kc7 35. Qf3) 34... Qe2 {[%emt 0:00:16]} (34... Kc6 $142) 35. Qh3+ $16 {[%emt 0:00:32]} Ke8 $2 {[%emt 0:00:21][%mdl 8192]} (35... Kc6 $11) 36. b4 {[%emt 0:03:19] aiming for hxg6.} Rc3 {[%emt 0:02:26]} 37. hxg6 {[%emt 0:01:23]} (37. bxa5 Rxd3 38. Qg2 Qxh5+ 39. Kg1 Qh4 $11) 37... hxg6 {[%emt 0:01:21]} 38. e6 {[%emt 0:00:41]} (38. bxa5 Rxd3 39. Qg2 Qh5+ 40. Kg1 Qh4 $11) 38... fxe6 {[%emt 0:01:45] [#]} 39. Be3 $2 $40 {[%emt 0:00:42][%mdl 128] White mounts an attack. The board is on fire.} (39. bxa5 $6 Rxd3 40. Qg2 Qe4 $11) ({White should play} 39. Ra2 $1 $16 {[%cal Ra2e2][%mdl 512]} Qh5 40. Qxh5 gxh5 41. bxa5) 39... Qxe3 $11 {[%emt 0:01:15]} 40. Rf3 {[%emt 0:00:42]} ({But not} 40. Qh7 $2 Rc7 41. Qh6 {[#]} (41. Qxg6+ $2 Kd7 $19) 41... Qxd3 $1 $19) 40... Rc1+ $4 {[%emt 0:01:20][%mdl 8192]} (40... Qe2 $1 $15 {stays ahead.} 41. bxa5 Kd7) 41. Rxc1 $18 {[%emt 0:30:22][%mdl 64] Remove Defender} Qxc1+ {[%emt 0:30:16]} 42. Rf1 {[%emt 0:00:00]} Qe3 {[%emt 0:00:00]} (42... Qxa3 $2 {leads to mate.} 43. Qxe6+ Kf8 44. Qe7+ Kg8 45. Qg7#) (42... Qxf1+ $18 43. Qxf1 Bb6) 43. Qh7 {[%emt 0:00:00] Weighted Error Value: White=0.41/Black=0.68} 1-0

[Event "26th Womens ECCC 2022"]
[Site "Mayrhofen"]
[Date "2022.10.08"]
[Round "6.24"]
[White "Thorsteinsdottir, Gudlaug"]
[Black "Zarkovic, Mila"]
[Result "0-1"]
[ECO "E19"]
[WhiteElo "2014"]
[BlackElo "2219"]
[Annotator "TA"]
[PlyCount "85"]
[EventDate "2022.10.03"]
[EventType "team-tourn"]
[EventCountry "AUT"]
[SourceTitle "playchess.com"]
[Source "ChessBase"]
[SourceQuality "1"]
[TimeControl "40/5400+30:1800+30"]

{[%evp 19,85,14,28,21,20,16,100,3,7,4,7,0,17,6,11,19,10,11,40,29,20,26,16,10,6,22,22,0,0,-7,0,-16,0,0,0,0,0,0,-4,-217,-149,-384,-338,-310,-318,-343,-318,-441,-435,-1190,-1190,-1478,-258,-358,0,-1325,-716,-1088,-1088,-1315,-1162,-856,-542,-578,-535,-29964,-29967,-29990]} 1. d4 {[%emt 0:00:02]} Nf6 {[%emt 0:00:04]} 2. Nf3 {[%emt 0:00:34]} e6 {[%emt 0:00:29]} 3. g3 {[%emt 0:00:10]} b6 {[%emt 0:01:38]} 4. Bg2 {[%emt 0:00:05]} Bb7 {[%emt 0:00:05]} 5. O-O {[%emt 0:03:34]} Be7 {[%emt 0:00:47]} 6. c4 {[%emt 0:00:54]} O-O {[%emt 0:02:49]} 7. Nc3 {[%emt 0:01:02]} Ne4 {[%emt 0:00:23]} 8. Qc2 {[%emt 0:02:34]} Nxc3 {[%emt 0:01:12]} 9. Qxc3 {[%emt 0:00:16]} f5 {[%emt 0:05:44]} 10. Rd1 {[%emt 0:06:43] was the old line (10.b3).} Bf6 {[%emt 0:06:20]} 11. b4 {[%emt 0:05:52] E19: Queen's Indian: Old Main Line with 7...Ne4 8 Qc2 Nxc3 8 Qxc3.} d6 {[%emt 0:03:10]} 12. Bb2 {[%emt 0:03:20]} Nd7 {[%emt 0:01:23] [#]} (12... Qe7 $11 {keeps the balance.}) 13. Qd2 {[%emt 0:03:28]} (13. Ng5 $1 $16 {[%cal Rg5e6]}) 13... a5 $11 {[%emt 0:02:55]} 14. a3 {[%emt 0:00:16] [#]} Be4 $146 {[%emt 0:03:12]} ({Predecessor:} 14... axb4 15. axb4 Qe7 16. b5 Rxa1 17. Rxa1 Ra8 18. Rxa8+ Bxa8 {1-0 (39) Vallin,G (2415)-Sohier,J (2252) France 2009}) 15. Ne1 {[%emt 0:07:36]} Bxg2 {[%emt 0:08:26]} 16. Nxg2 {[%emt 0:01:50]} Qe7 {[%emt 0:01:27]} 17. Bc3 {[%emt 0:09:14]} axb4 {[%emt 0:04:19]} 18. axb4 {[%emt 0:00:08]} Bg5 {[%emt 0:05:10]} 19. Qc2 {[%emt 0:04:31]} Qf7 {[%emt 0:04:04]} 20. Rxa8 {[%emt 0:06:06]} Rxa8 {[%emt 0:00:12]} 21. Ra1 {[%emt 0:00:08]} Rxa1+ {[%emt 0:03:31]} 22. Bxa1 {[%emt 0:00:06]} f4 {[%emt 0:06:00]} 23. gxf4 {[%emt 0:06:35]} Bxf4 {[%emt 0:00:57]} 24. Qe4 {[%emt 0:00:21]} Bd2 {[%emt 0:04:10][%cal Bf4d2,Bd2b4,Bb4d6][%mdl 32]} 25. b5 {[%emt 0:03:28]} h6 {[%emt 0:28:30]} 26. e3 {[%emt 0:05:43]} Nf6 $40 {[%emt 0:02:43][%mdl 128] Black attacks.} 27. Qc2 {[%emt 0:02:14]} Bb4 {[%emt 0:00:25]} 28. Nf4 {[%emt 0:02:30] Inhibits Qh5.} d5 {[%emt 0:01:00]} 29. Nd3 $2 {[%emt 0:00:25]} (29. c5 $11) 29... Bd6 {[%emt 0:00:23] aiming for ...Qg6+.} 30. c5 $2 {[%emt 0:02:51]} (30. Ne5 $17 {was worth a try.} Qh5 31. f3) 30... Qg6+ $19 {[%emt 0:00:05]} 31. Kf1 {[%emt 0:00:28]} Bxh2 {[%emt 0:00:32]} 32. cxb6 {[%emt 0:13:37]} cxb6 {[%emt 0:00:01]} 33. Ke2 {[%emt 0:01:28]} Ne4 {[%emt 0:00:12] Strongly threatening ...Bd6.} 34. Qc6 {[%emt 0:01:56]} (34. Bc3 $142 Qg4+ 35. Ke1) 34... Qg4+ {[%emt 0:00:43]} 35. Ke1 {[%emt 0:02:20]} Qg1+ $2 {[%emt 0:01:27]} (35... Bd6 {[%cal Od6b4] ( -> ...Bb4+!)} 36. Kf1 Qd1+ 37. Kg2 Kh7) 36. Ke2 {[%emt 0:00:04]} Qg4+ {[%emt 0:00:05]} ({But not} 36... Qxa1 $2 37. Qxe6+ Kf8 38. Qxb6 $19) (36... Qg6 37. Kd1 Kh7) 37. Ke1 {[%emt 0:00:20]} Bg1 {[%emt 0:00:33][%cal Og1f2]} 38. Qe8+ {[%emt 0:03:08]} Kh7 {[%emt 0:00:01][%cal Og1f2]} 39. Qf7 {[%emt 0:00:08]} Bh2 {[%emt 0:02:37] ...Bd6 is the strong threat.} 40. Bb2 {[%emt 0:00:38]} Qg1+ {[%emt 0:01:22]} 41. Ke2 {[%emt 0:30:05]} Qb1 {[%emt 0:07:01]} 42. Qh5 {[%emt 0:00:00]} Qc2+ {[%emt 0:00:48]} 43. Kf3 {Weighted Error Value: White=0.93/Black=0.85} 0-1

[Event "26th Womens ECCC 2022"]
[Site "Mayrhofen"]
[Date "2022.10.08"]
[Round "6.25"]
[White "Mayrhuber, Nikola"]
[Black "Katkov, Michelle"]
[Result "0-1"]
[ECO "E46"]
[WhiteElo "2117"]
[BlackElo "2219"]
[Annotator "TA"]
[PlyCount "110"]
[EventDate "2022.10.03"]
[EventType "team-tourn"]
[EventCountry "AUT"]
[SourceTitle "playchess.com"]
[Source "ChessBase"]
[SourceQuality "1"]
[TimeControl "40/5400+30:1800+30"]

{[%evp 13,110,0,0,0,15,8,0,13,10,0,0,0,5,-27,-30,-39,-39,-32,-14,-18,-10,-28,0,-15,-24,-14,-10,-31,-36,-150,-140,-148,-141,-143,-144,-153,-157,-146,-105,-96,-106,-127,-126,-123,-121,-115,-81,-92,-79,-158,-171,-321,-309,-333,-333,-333,-326,-314,-124,-142,0,-307,-307,-271,-231,-350,-225,-1044,-947,-2195,-1893,-2851,-2554,-1946,-1864,-2705,-2541,-12837,-12837,-12840,-12840,-12841,-12842,-12842,-12843,-12844,-12843,-12844,-12844,-12845,-12845,-27992,-27992,-27992,-27992,-27995,-27995,-27996,-27996]} 1. d4 {[%emt 0:00:02]} Nf6 {[%emt 0:00:06]} 2. c4 {[%emt 0:00:04]} e6 {[%emt 0:00:03]} 3. Nc3 {[%emt 0:00:03]} Bb4 {[%emt 0:00:05]} 4. e3 {[%emt 0:00:04]} O-O {[%emt 0:00:10]} 5. Bd2 {[%emt 0:00:03]} d5 {[%emt 0:00:36]} 6. Nf3 {[%emt 0:00:07]} b6 {[%emt 0:00:12]} 7. cxd5 {[%emt 0:00:08]} exd5 {[%emt 0:00:07]} 8. Rc1 {[%emt 0:00:07] E51: Nimzo-Indian: Rubinstein: 4...0-0 5 Nf3 d5.} Bb7 {[%emt 0:00:56]} 9. Bd3 {[%emt 0:00:12]} Re8 {[%emt 0:00:13]} 10. Ne5 {[%emt 0:04:30] The position is equal.} Bf8 {[%emt 0:02:30]} 11. O-O {[%emt 0:00:40]} c5 {[%emt 0:00:44]} 12. f4 {[%emt 0:00:52]} Nc6 {[%emt 0:00:59] [#]} 13. Qf3 $146 {[%emt 0:01:52]} ({Predecessor:} 13. Ne2 Rc8 14. Be1 Ne4 15. Bxe4 dxe4 16. Nxf7 Qd5 17. Ne5 Nxe5 18. dxe5 Qxa2 19. Bc3 {1-0 (45) Maghsoodloo,P (2701)-Firouzja,A (2804) Warsaw 2021}) 13... cxd4 {[%emt 0:09:25] White must now prevent ...Rxe5.} 14. Nxc6 {[%emt 0:00:55]} Bxc6 {[%emt 0:00:24]} 15. exd4 {[%emt 0:16:23]} Rc8 {[%emt 0:12:16]} 16. f5 {[%emt 0:05:41]} Ne4 {[%emt 0:05:10]} 17. Bf4 {[%emt 0:02:47]} Qf6 {[%emt 0:03:26]} 18. Be5 {[%emt 0:05:16]} Rxe5 {[%emt 0:01:17]} 19. dxe5 {[%emt 0:00:23]} Qxe5 {[%emt 0:00:42]} 20. Bxe4 {[%emt 0:05:01]} dxe4 {[%emt 0:00:48]} 21. Qf4 {[%emt 0:00:17]} ({Better is} 21. Qg3 $15 Bc5+ 22. Kh1 Qxg3 23. hxg3) 21... Bc5+ $17 {[%emt 0:07:25]} 22. Kh1 {[%emt 0:00:25]} Qxf4 {[%emt 0:00:10][%mdl 64] Remove Defender} 23. Rxf4 {[%emt 0:00:08]} Be3 {[%emt 0:00:21][%csl LRc1,LRf4] This bishop pair is nice.} 24. Rff1 {[%emt 0:12:56]} Bxc1 {[%emt 0:00:40]} 25. Rxc1 {[%emt 0:00:03][%cal Oc3e4][%mdl 4096] Endgame KRB-KRN} Bd7 {[%emt 0:10:10]} 26. g4 {[%emt 0:01:54]} g6 {[%emt 0:03:55]} 27. fxg6 {[%emt 0:03:36]} hxg6 {[%emt 0:04:24]} 28. g5 {[%emt 0:00:08]} Rc5 {[%emt 0:05:20]} 29. h4 {[%emt 0:02:13]} Kf8 {[%emt 0:02:12]} 30. Kg2 {[%emt 0:01:51]} Bc6 {[%emt 0:03:03]} 31. Re1 {[%emt 0:07:00]} (31. Rd1 $142) 31... Rf5 $1 {[%emt 0:00:52]} 32. Re3 {[%emt 0:12:25]} (32. Rf1 $142) 32... Ke7 $19 {[%emt 0:13:10]} 33. Kg3 {[%emt 0:00:43] [#]} Rf3+ $1 {[%emt 0:04:53]} 34. Rxf3 {[%emt 0:00:06]} exf3 {[%emt 0:00:03] KB-KN} 35. Nb1 {[%emt 0:00:18]} Bd5 $2 {[%emt 0:00:29]} (35... Kd6 $19 {Hoping for ...a5.} 36. Nd2 Bd5) 36. Nc3 $17 {[%emt 0:07:22]} Bc6 {[%emt 0:00:09]} (36... Bb7 $17 37. Nb5 a5) 37. Nb1 $1 $19 {[%emt 0:00:05]} Kd6 {[%emt 0:00:14] Strongly threatening ...a5.} 38. Nd2 {[%emt 0:00:11]} Bd5 {[%emt 0:00:05] ...Kc5 is the strong threat.} 39. a3 {[%emt 0:10:12]} (39. b3 {was worth a try.}) 39... Kc5 {[%emt 0:00:06]} 40. Nxf3 $2 {[%emt 0:01:37]} (40. Kf4) 40... Kc4 {[%emt 0:01:22]} 41. Ne5+ {[%emt 0:07:26]} Kb3 {[%emt 0:00:09]} 42. Nd3 {[%emt 0:00:10]} Bc4 {[%emt 0:00:46]} 43. Ne5 {[%emt 0:00:17]} b5 {[%emt 0:03:01]} 44. h5 {[%emt 0:05:14]} gxh5 {[%emt 0:00:20]} 45. Kh4 {[%emt 0:00:03]} Kxb2 {[%emt 0:01:47]} 46. a4 {[%emt 0:00:04]} a6 {[%emt 0:01:42][%cal Ba7a6,Ba6b5][%mdl 32]} 47. axb5 {[%emt 0:01:27]} axb5 {[%emt 0:00:07]} 48. Kxh5 {[%emt 0:00:07]} Kc3 {[%emt 0:01:58]} 49. Nd7 {[%emt 0:07:59]} Bd3 {[%emt 0:02:17]} 50. Kh6 {[%emt 0:08:49]} b4 {[%emt 0:00:30]} 51. Nc5 {[%emt 0:00:05]} b3 {[%emt 0:00:47]} 52. Nxb3 {[%emt 0:00:06]} Kxb3 {[%emt 0:00:05] Black mates.} 53. Kg7 {[%emt 0:00:38] [#]} Bg6 $1 {[%emt 0:00:05]} 54. Kf6 {[%emt 0:00:04]} Kc4 {[%emt 0:00:06]} 55. Ke5 {[%emt 0:00:18]} Kc5 {[%emt 0:00:09] Weighted Error Value: White=0.63/Black=0.12 (very precise)} 0-1

[Event "26th Womens ECCC 2022"]
[Site "Mayrhofen"]
[Date "2022.10.08"]
[Round "6.26"]
[White "Federovski, Adi"]
[Black "Schloffer, Jasmin-Denise"]
[Result "0-1"]
[ECO "C77"]
[WhiteElo "1967"]
[BlackElo "2086"]
[Annotator "TA"]
[PlyCount "186"]
[EventDate "2022.10.03"]
[EventType "team-tourn"]
[EventCountry "AUT"]
[SourceTitle "playchess.com"]
[Source "ChessBase"]
[SourceQuality "1"]
[TimeControl "40/5400+30:1800+30"]

{[%evp 25,186,9,12,14,23,18,16,7,18,17,17,16,23,14,34,-131,-135,-163,-77,-113,-109,-102,-97,-127,-121,-120,-116,-112,-118,-115,-113,-113,-113,-140,-125,-152,-152,-147,-133,-160,-154,-154,-132,-125,-120,-126,-142,-166,-166,-189,-100,-187,-151,-239,-228,-339,-323,-304,-275,-302,-126,-144,-116,-116,-116,-116,-120,-117,-124,-116,-90,-160,-137,-129,-96,-103,-110,-110,-77,-79,-79,-79,-77,-114,-77,-85,-51,-51,-52,-52,-51,-51,-8,-51,-8,-72,-72,-72,-72,-99,-99,-101,-105,-108,-77,-78,-78,-89,0,-131,-131,-1253,-1252,-29964,-29966,-29968,-29967,-29966,-29961,-29961,-29962,-29963,-29958,-29952,-29956,-29964,-29967,-29966,-29967,-29980,-29967,-29969,-29970,-29969,-29966,-29971,-29972,-29969,-29965,-29979,-29970,-29976,-29977,-29981,-29981,-29981,-29982,-29982,-29983,-29982,-29983,-29983,-29986,-29986,-29987,-29988,-29989,-29989,-29986,-29986,-29982,-29986,-29985]} 1. e4 {[%emt 0:00:02]} e5 {[%emt 0:00:04]} 2. Nf3 {[%emt 0:00:09]} Nc6 {[%emt 0:00:05]} 3. Bb5 {[%emt 0:00:09]} a6 {[%emt 0:00:04]} 4. Ba4 {[%emt 0:00:04]} Nf6 {[%emt 0:00:04]} 5. d3 {[%emt 0:00:22]} b5 {[%emt 0:00:07]} 6. Bb3 {[%emt 0:00:06]} Be7 {[%emt 0:00:05]} 7. O-O {[%emt 0:00:18]} d6 {[%emt 0:00:05]} 8. c3 {[%emt 0:00:11]} O-O {[%emt 0:00:18]} 9. Nbd2 {[%emt 0:00:13]} Na5 {[%emt 0:00:08]} 10. Bc2 {[%emt 0:00:08]} c5 {[%emt 0:00:06]} 11. Re1 {[%emt 0:00:10]} Nc6 {[%emt 0:00:06]} 12. Nf1 {[%emt 0:00:10]} Be6 {[%emt 0:00:05] Recently 12...h6 got a lot of attention.} 13. Ne3 {[%emt 0:05:18]} Qc7 {[%emt 0:04:52]} 14. Ng5 {[%emt 0:01:36] C90: Closed Ruy Lopez with 7...d6: Early deviations.} Bd7 {[%emt 0:01:19]} 15. Nd5 {[%emt 0:03:52]} Qd8 {[%emt 0:04:25]} 16. Nxe7+ {[%emt 0:01:21] [#] The position is equal.} Nxe7 $146 {[%emt 0:01:33]} (16... Qxe7 17. f4 h6 18. Nf3 Rac8 19. h3 Nh7 20. Qe2 g5 21. fxg5 hxg5 22. Nh2 Kg7) ({Predecessor:} 16... Qxe7 17. f4 h6 18. Nf3 Rac8 19. h3 Nh7 20. Qe2 g5 21. fxg5 hxg5 22. Nh2 Kg7 {1-0 (42) Pavlov,M-Nordfjord,S Krakow 1964}) 17. h3 {[%emt 0:00:28]} Ng6 {[%emt 0:03:20]} 18. d4 {[%emt 0:02:39]} Qc7 {[%emt 0:04:30]} 19. Nf3 {[%emt 0:05:02]} Rfc8 {[%emt 0:07:50]} 20. a4 $2 {[%emt 0:03:24]} (20. d5 $14 {stays ahead.}) 20... cxd4 $17 {[%emt 0:02:44]} 21. axb5 {[%emt 0:15:30]} Bxb5 {[%emt 0:05:59]} (21... dxc3 $19 22. Rb1 cxb2 23. Rxb2 axb5) 22. Bb3 {[%emt 0:07:29]} dxc3 {[%emt 0:01:39]} 23. bxc3 {[%emt 0:00:12]} h6 {[%emt 0:06:45] Prevents Bg5.} 24. Ba3 {[%emt 0:07:12]} Rd8 {[%emt 0:01:27]} ({Don't play} 24... Qxc3 $6 25. Bxd6 Bc4 26. Ba4 $11) 25. c4 {[%emt 0:04:33]} Bc6 {[%emt 0:02:24]} ({Worse is} 25... Bxc4 26. Qc2 Rdc8 27. Rec1 Bxb3 28. Qxc7 Rxc7 29. Rxc7 $15) 26. Qc2 {[%emt 0:00:07]} Qb7 {[%emt 0:03:53][%cal Rc6e4]} 27. Nd2 {[%emt 0:00:46]} Nf4 {[%emt 0:00:49]} 28. Rab1 {[%emt 0:02:23]} Qe7 {[%emt 0:02:54] Black has more active pieces.} 29. Nf3 {[%emt 0:03:51]} Nd7 {[%emt 0:04:58]} 30. Ba4 {[%emt 0:07:41]} Bxa4 {[%emt 0:03:07]} 31. Qxa4 {[%emt 0:00:05]} Qf6 $40 {[%emt 0:03:42][%cal Of4h3][%mdl 128] Black attacks with force.} 32. Re3 {[%emt 0:05:44] [#]} Qg6 $1 {[%emt 0:03:26][%csl Gf4,LRg2,LRh3][%cal Rg6g2]} 33. Ne1 {[%emt 0:00:33]} Nc5 {[%emt 0:00:51]} 34. Bxc5 {[%emt 0:03:47]} dxc5 {[%emt 0:00:04]} 35. Qa5 {[%emt 0:00:13]} Qd6 {[%emt 0:07:45]} 36. Nf3 {[%emt 0:03:03]} Rab8 {[%emt 0:04:36] Against Rb6} 37. Ra1 {[%emt 0:02:59]} Rd7 {[%emt 0:13:00]} (37... Rb2 $19 {Strongly threatening ...Kh7.} 38. Nxe5 Rdb8) 38. Qa4 {[%emt 0:13:24]} (38. Qxa6 $17 Qxa6 39. Rxa6) 38... Rb4 {[%emt 0:02:14]} 39. Qc2 {[%emt 0:03:06]} (39. Qxa6 $17 Qxa6 40. Rxa6) 39... Rdb7 {[%emt 0:03:18]} 40. Rd1 {[%emt 0:01:23]} (40. Ne1 $142) 40... Qg6 $19 {[%emt 0:02:51][%csl Gf4,LRg2,LRh3][%cal Rg6g2]} 41. Ne1 {[%emt 0:06:03]} Rb2 {[%emt 0:04:05]} 42. Qa4 {[%emt 0:00:06]} Rb8 {[%emt 0:00:16] Inhibits Qe8+.} (42... Kh7 $19 {and Black stays clearly on top. Threatens to win with ...R7b4.} 43. Qa5 R7b6) 43. Qd7 $17 {[%emt 0:06:02]} Re2 {[%emt 0:07:32]} 44. Rxe2 {[%emt 0:12:31]} Nxe2+ {[%emt 0:00:06][%cal Bf4e2,Be2c3,Bc3e4][%mdl 32]} 45. Kf1 {[%emt 0:02:23]} Qxe4 {[%emt 0:04:12] Hoping for ...Nf4.} 46. Qd3 {[%emt 0:00:15]} Qxd3 {[%emt 0:00:48]} 47. Nxd3 {[%emt 0:01:16][%mdl 4096] Endgame KRN-KRN} Nc3 {[%emt 0:00:34]} 48. Re1 {[%emt 0:00:54]} ({Better is} 48. Ra1) 48... f6 {[%emt 0:03:35]} 49. Nxc5 {[%emt 0:00:24]} Rc8 {[%emt 0:00:36]} 50. Nxa6 {[%emt 0:00:33]} Rxc4 {[%emt 0:00:11]} 51. Rc1 {[%emt 0:00:34]} Ne4 {[%emt 0:01:25]} 52. Rxc4 {[%emt 0:00:06]} Nd2+ {[%emt 0:00:05]} 53. Ke2 {[%emt 0:00:04]} Nxc4 {[%emt 0:00:02] KN-KN} 54. Nc5 {[%emt 0:02:12]} Nd6 {[%emt 0:01:18]} 55. Ke3 {[%emt 0:00:49]} Kf7 {[%emt 0:00:16]} 56. f4 {[%emt 0:01:14]} exf4+ {[%emt 0:02:58]} 57. Kxf4 {[%emt 0:00:05]} g5+ {[%emt 0:00:03]} 58. Kf3 {[%emt 0:00:51]} f5 {[%emt 0:01:31]} 59. Nd3 {[%emt 0:00:45]} Ke6 {[%emt 0:03:57]} 60. Nc5+ {[%emt 0:01:54]} (60. g4 $11 {keeps the balance.}) 60... Kd5 {[%emt 0:00:10]} 61. Nd7 {[%emt 0:00:13][%cal Oh3h4]} Nf7 {[%emt 0:02:02] White must now prevent ...Ne5+.} 62. Nb6+ {[%emt 0:00:49]} Kd4 {[%emt 0:00:22]} 63. g3 {[%emt 0:00:44]} Ne5+ {[%emt 0:00:34]} 64. Kf2 {[%emt 0:00:23]} f4 {[%emt 0:03:25]} 65. gxf4 {[%emt 0:00:19]} gxf4 {[%emt 0:00:05]} 66. Nc8 {[%emt 0:00:04]} Nf7 {[%emt 0:01:49] Prevents Nd6.} (66... Nc4 67. Ne7 Ke5) ({Black should try} 66... Kd5 $17 67. Ne7+ Ke6) 67. Ne7 {[%emt 0:00:35] [#]} (67. Kf3) (67. Kf3 $11 {was the only way to keep the balance.}) 67... Ke5 $1 {[%emt 0:00:58] And now ...h5 would win.} 68. Ng6+ $2 {[%emt 0:00:41][%mdl 8192] Loses the game.} (68. Kf3) (68. Kf3 $17) 68... Ke4 $19 {[%emt 0:00:30] ( -> ...Ne5)} 69. h4 {[%emt 0:01:01]} h5 {[%emt 0:01:27] Black mates.} 70. Ne7 {[%emt 0:01:15]} Ne5 {[%emt 0:00:39]} 71. Nc8 {[%emt 0:00:27]} Ng6 {[%emt 0:00:44]} (71... Kf5 72. Nd6+ Kg4) 72. Nd6+ {[%emt 0:00:05]} Ke5 {[%emt 0:00:26]} 73. Nf7+ {[%emt 0:00:42]} Kf5 {[%emt 0:00:31]} 74. Nh6+ {[%emt 0:00:39]} Ke4 {[%emt 0:00:26]} 75. Ng8 {[%emt 0:00:16]} Ke5 {[%emt 0:00:04]} 76. Nh6 {[%emt 0:00:40]} Nxh4 {[%emt 0:00:20]} 77. Ke2 {[%emt 0:00:41]} Ke4 {[%emt 0:01:17]} 78. Ng8 {[%emt 0:00:21]} Kf5 {[%emt 0:00:08]} 79. Ne7+ {[%emt 0:00:42]} Kg4 {[%emt 0:00:41]} 80. Kf2 {[%emt 0:00:18]} Nf5 {[%emt 0:00:28]} 81. Ng6 {[%emt 0:00:13]} Nd4 {[%emt 0:00:18]} 82. Kg2 {[%emt 0:00:24]} Ne6 {[%emt 0:01:07]} 83. Kf2 {[%emt 0:00:18]} Ng5 {[%emt 0:00:15]} 84. Kg2 {[%emt 0:01:03]} h4 {[%emt 0:00:39]} 85. Ne5+ {[%emt 0:00:30]} Kf5 {[%emt 0:00:04]} 86. Nd3 {[%emt 0:00:14]} Ke4 {[%emt 0:00:52]} 87. Nf2+ {[%emt 0:00:10]} Ke3 {[%emt 0:00:29]} 88. Ng4+ {[%emt 0:01:18]} Ke2 {[%emt 0:00:10]} 89. Kh2 {[%emt 0:00:23]} f3 {[%emt 0:00:38][%cal Bf4f3,Bf3f2][%mdl 32]} 90. Kg1 {[%emt 0:00:39]} Ne4 {[%emt 0:01:49]} 91. Nh2 {[%emt 0:00:09]} Ng3 {[%emt 0:00:06]} 92. Ng4 {[%emt 0:00:33]} Ke1 {[%emt 0:00:28]} 93. Kh2 {[%emt 0:00:51]} f2 {[%emt 0:00:43] Weighted Error Value: White=0.23 (precise) /Black=0.22 (precise)} 0-1